bitfinex/quotes_BTCUSD_20250602
["timestamp","ask_amount","ask_price","bid_price","bid_amount"]
[1748844647139,1.60729951,104910.0,104900.0,0.03468651]
[1748844647354,1.60665951,104910.0,104900.0,0.03468651]
[1748844649144,1.22077951,104910.0,104900.0,0.03468651]
[1748844649344,1.27231049,104910.0,104900.0,0.03468651]
[1748844653617,1.59211866,104910.0,104900.0,0.03468651]
[1748844654426,1.59207866,104910.0,104900.0,0.03468651]
[1748844654634,0.9429308,104910.0,104900.0,0.04138033]
[1748844654958,0.6482908,104910.0,104900.0,0.35000808]
[1748844655162,0.96809897,104910.0,104900.0,0.35000697]
[1748844655302,0.96809897,104910.0,104900.0,0.35000723]
[1748844655522,0.96809897,104910.0,104900.0,0.35000688]
[1748844655720,0.96809897,104910.0,104900.0,0.35000686]
[1748844656019,0.96809897,104910.0,104900.0,0.14028344]
[1748844656693,0.6482908,104910.0,104900.0,0.14981632]
[1748844656897,0.96809897,104910.0,104900.0,0.15265666]
[1748844657050,0.96809897,104910.0,104900.0,0.15934912]
[1748844657252,0.96809897,104910.0,104900.0,0.35000656]
[1748844657897,0.96809897,104910.0,104900.0,0.14981601]
[1748844658046,0.87689897,104910.0,104900.0,0.14981604]
[1748844658250,0.96805897,104910.0,104900.0,0.14981603]
[1748844658645,0.96805897,104910.0,104900.0,0.14981576]
[1748844659234,0.96805897,104910.0,104900.0,0.14028284]
[1748844660192,0.96805897,104910.0,104900.0,0.14028291]
[1748844660475,0.96805897,104910.0,104900.0,0.13359098]
[1748844660894,0.96805897,104910.0,104900.0,0.04442861]
[1748844660895,1.28786714,104910.0,104900.0,0.04442861]
[1748844661321,1.28786714,104910.0,104900.0,0.04137844]
[1748844661541,1.28786714,104910.0,104900.0,0.04137857]
[1748844662218,1.28786714,104910.0,104900.0,0.04137856]
[1748844662626,1.28786714,104910.0,104900.0,0.04137851]
[1748844662769,1.28786714,104910.0,104900.0,0.03468651]
[1748844662970,1.28786714,104910.0,104900.0,0.04137851]
[1748844663872,0.87689897,104910.0,104900.0,0.04137851]
[1748844664126,1.26265897,104910.0,104900.0,0.33742336]
[1748844664335,1.26265897,104910.0,104900.0,0.13723234]
[1748844664748,1.26265897,104910.0,104900.0,0.13723202]
[1748844665244,1.26265897,104910.0,104900.0,0.13723201]
[1748844665814,1.26265897,104910.0,104900.0,0.13723177]
[1748844666135,1.26265897,104910.0,104900.0,0.13054081]
[1748844666342,1.26265897,104910.0,104900.0,0.13723168]
[1748844666544,1.26265897,104910.0,104900.0,0.1372315]
[1748844666953,1.26265897,104910.0,104900.0,0.13054081]
[1748844667248,1.26268297,104910.0,104900.0,0.13723134]
[1748844668071,1.26268297,104910.0,104900.0,0.13723103]
[1748844668694,1.26268297,104910.0,104900.0,0.13723099]
[1748844668826,1.26268297,104910.0,104900.0,0.13054081]
[1748844669025,1.26268297,104910.0,104900.0,0.14028088]
[1748844669429,1.26268297,104910.0,104900.0,0.14028067]
[1748844669650,1.26268297,104910.0,104900.0,0.14981355]
[1748844669858,1.26268297,104910.0,104900.0,0.14981352]
[1748844670558,1.26268297,104910.0,104900.0,0.14981345]
[1748844671324,1.26268297,104910.0,104900.0,0.1498135]
[1748844672541,0.87692297,104910.0,104900.0,0.14981342]
[1748844672776,1.26264297,104910.0,104900.0,0.14981342]
[1748844673400,1.26264297,104910.0,104900.0,0.14312383]
[1748844673608,1.26264297,104910.0,104900.0,0.14981364]
[1748844674304,1.26264297,104910.0,104900.0,0.15934563]
[1748844674570,0.36709094,104910.0,104900.0,0.35953609]
[1748844674790,0.77183398,104910.0,104900.0,0.37860086]
[1748844675013,0.78136586,104910.0,104900.0,0.37860086]
[1748844675489,0.78136586,104910.0,104900.0,0.37859971]
[1748844675713,1.29183834,104910.0,104900.0,0.36906746]
[1748844675935,1.29183834,104910.0,104900.0,0.36906622]
[1748844676792,1.28230682,104910.0,104900.0,0.36906622]
[1748844677241,1.28230682,104910.0,104900.0,0.36906751]
[1748844677464,1.28230682,104910.0,104900.0,0.36906717]
[1748844677693,1.28230682,104910.0,104900.0,0.36906859]
[1748844677912,1.27277503,104910.0,104900.0,0.36906859]
[1748844678628,1.27277503,104910.0,104900.0,0.36906827]
[1748844679591,1.25371118,104910.0,104900.0,0.14027962]
[1748844679804,1.25371118,104910.0,104900.0,0.04442532]
[1748844680034,1.25371118,104910.0,104900.0,0.04442577]
[1748844680469,1.25371118,104910.0,104900.0,0.04442642]
[1748844681570,1.25371118,104910.0,104900.0,0.03773665]
[1748844681776,1.25371118,104910.0,104900.0,0.04442689]
[1748844682022,1.25371118,104910.0,104900.0,0.04442668]
[1748844682944,1.25371118,104910.0,104900.0,0.03773663]
[1748844683194,1.25371118,104910.0,104900.0,0.04442705]
[1748844683989,1.25371118,104910.0,104900.0,0.04442759]
[1748844684492,0.95915118,104910.0,104900.0,0.24461823]
[1748844684728,1.25367118,104910.0,104900.0,0.0539611]
[1748844684854,1.25367118,104910.0,104900.0,0.053961]
[1748844685402,1.25367118,104910.0,104900.0,0.05396098]
[1748844685619,1.25367118,104910.0,104900.0,0.0539609]
[1748844685969,0.95915118,104910.0,104900.0,0.0539609]
[1748844686166,1.25367118,104910.0,104900.0,0.03773663]
[1748844686559,1.25367118,104910.0,104900.0,0.04442718]
[1748844686858,1.25367118,104910.0,104900.0,0.04442701]
[1748844687144,1.25367118,104910.0,104900.0,0.03773663]
[1748844687268,1.25366639,104910.0,104900.0,0.05395999]
[1748844688113,1.25366639,104910.0,104900.0,0.05396012]
[1748844688526,1.25366639,104910.0,104900.0,0.05396013]
[1748844689451,1.25366639,104910.0,104900.0,0.05396017]
[1748844689601,1.25366639,104910.0,104900.0,0.04442729]
[1748844690033,1.25366639,104910.0,104900.0,0.04442731]
[1748844690234,1.25366639,104910.0,104900.0,0.04442739]
[1748844690884,1.25366639,104910.0,104900.0,0.05396027]
[1748844691835,1.25366639,104910.0,104900.0,0.05396037]
[1748844692050,1.25366639,104910.0,104900.0,0.05396039]
[1748844692418,1.25366639,104910.0,104900.0,0.04726947]
[1748844692630,1.25366639,104910.0,104900.0,0.05396073]
[1748844693207,1.25366639,104910.0,104900.0,0.05396075]
[1748844694464,0.87755836,104910.0,104900.0,0.254151]
[1748844694712,1.27265006,104910.0,104900.0,0.36907035]
[1748844695324,1.27265006,104910.0,104900.0,0.36906997]
[1748844695867,1.27265006,104910.0,104900.0,0.36907015]
[1748844696187,1.27265006,104910.0,104900.0,0.36907014]
[1748844696390,1.27265006,104910.0,104900.0,0.36907064]
[1748844697498,1.27265006,104910.0,104900.0,0.36907096]
[1748844697917,1.27265006,104910.0,104900.0,0.36237962]
[1748844698268,1.27265006,104910.0,104900.0,0.36907097]
[1748844698474,1.27265006,104910.0,104900.0,0.36237962]
[1748844699457,1.25358639,104910.0,104900.0,0.14312376]
[1748844699652,1.25358639,104910.0,104900.0,0.35000595]
[1748844700370,1.23602697,104910.0,104900.0,0.35000608]
[1748844700755,1.23602697,104910.0,104900.0,0.34716526]
[1748844701546,1.23602697,104910.0,104900.0,0.34716545]
[1748844701913,1.23602697,104910.0,104900.0,0.35669824]
[1748844702058,1.23602697,104910.0,104900.0,0.35000618]
[1748844702295,1.23602697,104910.0,104900.0,0.35669837]
[1748844702502,1.23602697,104910.0,104900.0,0.36339056]
[1748844703020,1.23602697,104910.0,104900.0,0.15366713]
[1748844703447,1.55514975,104910.0,104900.0,0.02661283]
[1748844703808,1.55514975,104910.0,104900.0,0.01992064]
[1748844704046,1.55514975,104910.0,104900.0,0.02661368]
[1748844704372,1.55514975,104910.0,104900.0,0.02661344]
[1748844704742,1.55514975,104910.0,104900.0,0.02661352]
[1748844705785,1.57024975,104910.0,104900.0,0.02661412]
[1748844706562,1.57024975,104910.0,104900.0,0.02661388]
[1748844707055,1.55514975,104910.0,104900.0,0.02661388]
[1748844707261,1.55514975,104910.0,104900.0,0.02661399]
[1748844708365,1.21585435,104910.0,104900.0,0.02661399]
[1748844709064,1.21585435,104910.0,104900.0,0.02661402]
[1748844709599,1.21585435,104910.0,104900.0,0.02661388]
[1748844711086,1.21585435,104910.0,104900.0,0.02661407]
[1748844711286,1.21585435,104910.0,104900.0,0.02509407]
[1748844711990,1.21585435,104910.0,104900.0,0.02509388]
[1748844712390,1.21585435,104910.0,104900.0,0.01840074]
[1748844712573,1.21585435,104910.0,104900.0,0.02509384]
[1748844713169,1.24765435,104910.0,104900.0,0.02509384]
[1748844713373,1.24765435,104910.0,104900.0,0.0220436]
[1748844713802,1.24765435,104910.0,104900.0,0.01535056]
[1748844715113,1.21935427,104910.0,104900.0,0.01535056]
[1748844716711,0.28521951,104910.0,104900.0,0.01535056]
[1748844716932,1.18743427,104910.0,104900.0,0.01535056]
[1748844717161,1.52743427,104910.0,104900.0,0.01535056]
[1748844720386,1.61994549,104910.0,104900.0,0.01535056]
[1748844723723,1.52743427,104910.0,104900.0,0.01535056]
[1748844728085,1.18743427,104910.0,104900.0,0.01535056]
[1748844733138,1.21707512,104910.0,104900.0,0.01535056]
[1748844735458,1.20197512,104910.0,104900.0,0.01535056]
[1748844735743,0.90761512,104910.0,104900.0,0.01535056]
[1748844735952,1.20189512,104910.0,104900.0,0.01535056]
[1748844737603,0.56224036,104910.0,104900.0,0.01535056]
[1748844737816,1.20189512,104910.0,104900.0,0.01535056]
[1748844740961,1.24087604,104910.0,104900.0,0.01535056]
[1748844741169,1.59647604,104910.0,104900.0,0.01535056]
[1748844741362,1.61307604,104910.0,104900.0,0.01535056]
[1748844742149,1.54189512,104910.0,104900.0,0.01535056]
[1748844742738,1.55759512,104910.0,104900.0,0.01535056]
[1748844745375,1.57259512,104910.0,104900.0,0.01535056]
[1748844746265,1.55759512,104910.0,104900.0,0.01535056]
[1748844747288,1.57399512,104910.0,104900.0,0.01535056]
[1748844747684,1.55759512,104910.0,104900.0,0.01535056]
[1748844748217,1.54189512,104910.0,104900.0,0.01535056]
[1748844750944,1.95377512,104910.0,104900.0,0.01535056]
[1748844751248,2.04628634,104910.0,104900.0,0.01535056]
[1748844752944,2.07708634,104910.0,104900.0,0.01535056]
[1748844753753,2.49276802,104910.0,104900.0,0.01535056]
[1748844754847,2.17294064,104910.0,104900.0,0.01535056]
[1748844754972,2.49276802,104910.0,104900.0,0.01535056]
[1748844755547,2.55879088,104910.0,104900.0,0.01535056]
[1748844756466,2.46627966,104910.0,104900.0,0.01535056]
[1748844757336,1.54591345,104900.0,104890.0,0.01520782]
[1748844757544,1.72536187,104900.0,104890.0,0.01520782]
[1748844757753,1.72536187,104900.0,104870.0,0.0494]
[1748844757754,1.18378588,104880.0,104870.0,0.0494]
[1748844757988,1.56894588,104880.0,104870.0,0.0188]
[1748844758428,1.69650018,104880.0,104870.0,0.0188]
[1748844759151,1.69650018,104880.0,104870.0,0.0208]
[1748844759362,1.71744188,104880.0,104870.0,0.0218]
[1748844759571,1.76716354,104880.0,104870.0,0.0188]
[1748844759747,1.70114188,104880.0,104870.0,0.0188]
[1748844759987,1.70214188,104880.0,104870.0,0.0188]
[1748844760379,1.7946531,104880.0,104870.0,0.0188]
[1748844761232,1.7956531,104880.0,104870.0,0.0188]
[1748844765139,1.7802531,104880.0,104870.0,0.0188]
[1748844765309,1.68774188,104880.0,104870.0,0.0188]
[1748844775872,2.09974188,104880.0,104870.0,0.0188]
[1748844777402,2.09974188,104880.0,104870.0,0.0176]
[1748844778407,2.09974188,104880.0,104870.0,0.0494]
[1748844779209,2.41979708,104880.0,104870.0,0.0494]
[1748844779411,2.0996374,104880.0,104870.0,0.0494]
[1748844780488,1.8053974,104880.0,104870.0,0.0494]
[1748844780686,2.0996374,104880.0,104870.0,0.0494]
[1748844782167,2.17246718,104880.0,104870.0,0.0494]
[1748844782500,1.2786231,104880.0,104870.0,0.0494]
[1748844782683,1.28392257,104880.0,104870.0,0.0494]
[1748844782817,1.64920225,104880.0,104870.0,0.0494]
[1748844783023,1.98920225,104880.0,104870.0,0.0494]
[1748844783484,1.34888289,104880.0,104870.0,0.0494]
[1748844783632,1.98920225,104880.0,104870.0,0.0494]
[1748844789696,1.34888289,104880.0,104870.0,0.0494]
[1748844789901,1.98920225,104880.0,104870.0,0.0494]
[1748844790809,1.69496225,104880.0,104870.0,0.0494]
[1748844791321,1.98916225,104880.0,104870.0,0.0494]
[1748844792607,1.26408225,104880.0,104870.0,0.0494]
[1748844792786,1.33849727,104880.0,104870.0,0.24964774]
[1748844793001,1.32896302,104880.0,104870.0,0.24011231]
[1748844793216,1.3192947,104880.0,104870.0,0.0494]
[1748844793433,1.0251347,104880.0,104870.0,0.0494]
[1748844793639,1.3192947,104880.0,104870.0,0.0494]
[1748844794197,0.70510882,104880.0,104870.0,0.0494]
[1748844794400,0.53348293,104880.0,104870.0,0.36457235]
[1748844794760,1.00880325,104880.0,104870.0,0.35503756]
[1748844795520,0.99926873,104880.0,104870.0,0.35503756]
[1748844795737,0.98973412,104880.0,104870.0,0.33596661]
[1748844795952,1.30976,104880.0,104870.0,0.1452543]
[1748844803646,0.89776,104880.0,104870.0,0.1452543]
[1748844804077,0.51272,104880.0,104870.0,0.1452543]
[1748844804280,0.57769412,104880.0,104870.0,0.1452543]
[1748844804429,0.51272,104880.0,104870.0,0.1452543]
[1748844804630,0.89772,104880.0,104870.0,0.1452543]
[1748844805034,0.51272,104880.0,104870.0,0.1452543]
[1748844805307,0.89772,104880.0,104870.0,0.1452543]
[1748844805619,0.57769412,104880.0,104870.0,0.1452543]
[1748844807221,0.57769412,104880.0,104870.0,0.15194239]
[1748844807877,0.89772,104880.0,104870.0,0.15194239]
[1748844808079,0.89772,104880.0,104870.0,0.15194252]
[1748844808426,0.89772,104880.0,104870.0,0.15194388]
[1748844809744,0.89772,104880.0,104870.0,0.15194578]
[1748844810393,0.89772,104880.0,104870.0,0.0494]
[1748844810638,0.89772,104880.0,104870.0,0.05609148]
[1748844810861,0.89772,104880.0,104870.0,0.0494]
[1748844811066,0.89772,104880.0,104870.0,0.05609148]
[1748844812207,0.89772,104880.0,104870.0,0.05914256]
[1748844812408,0.89772,104880.0,104870.0,0.05914541]
[1748844813258,0.89772,104880.0,104870.0,0.05245108]
[1748844813463,0.89772,104880.0,104870.0,0.05914652]
[1748844815401,0.89772,104880.0,104870.0,0.05245108]
[1748844815653,0.89772,104880.0,104870.0,0.05914702]
[1748844816076,0.89772,104880.0,104870.0,0.05914737]
[1748844816929,0.89772,104880.0,104870.0,0.05914775]
[1748844817344,1.21774588,104880.0,104870.0,0.0176]
[1748844817548,1.23324588,104880.0,104870.0,0.02429751]
[1748844817757,1.23324588,104880.0,104870.0,0.0176]
[1748844817970,1.21774588,104880.0,104870.0,0.0176]
[1748844818175,1.21774588,104880.0,104870.0,0.02429794]
[1748844818381,1.21774588,104880.0,104870.0,0.0176]
[1748844818912,1.23344588,104880.0,104870.0,0.0176]
[1748844819121,1.24854588,104880.0,104870.0,0.0176]
[1748844819316,1.2487599,104880.0,104870.0,0.0176]
[1748844819970,1.2179599,104880.0,104870.0,0.0176]
[1748844820137,0.57769412,104880.0,104870.0,0.0176]
[1748844820345,1.2179599,104880.0,104870.0,0.0176]
[1748844821341,0.89779917,104880.0,104870.0,0.0176]
[1748844821564,0.89771917,104880.0,104870.0,0.0176]
[1748844823994,0.89771917,104880.0,104870.0,0.048]
[1748844825700,0.57753412,104880.0,104870.0,0.05469766]
[1748844825866,0.60359917,104880.0,104870.0,0.05469754]
[1748844826083,0.89763917,104880.0,104870.0,0.05469754]
[1748844826482,0.89763917,104880.0,104870.0,0.048]
[1748844826682,0.89763917,104880.0,104870.0,0.05469713]
[1748844826911,0.89763917,104880.0,104870.0,0.05469718]
[1748844827435,0.89763917,104880.0,104870.0,0.048]
[1748844827763,0.89763917,104880.0,104870.0,0.36986941]
[1748844827764,0.0928,104880.0,104870.0,0.36986941]
[1748844827886,0.11186877,104880.0,104870.0,0.37292053]
[1748844828087,0.13093754,104880.0,104870.0,0.37292053]
[1748844828301,0.13093754,104880.0,104870.0,0.37291791]
[1748844828493,0.13093754,104880.0,104870.0,0.36622347]
[1748844828699,0.13093754,104880.0,104870.0,0.37291793]
[1748844828903,0.13093754,104880.0,104870.0,0.37291786]
[1748844829449,0.14047142,104880.0,104870.0,0.37291786]
[1748844829670,0.14047142,104880.0,104870.0,0.37291785]
[1748844829888,0.14047142,104880.0,104870.0,0.36622347]
[1748844830101,0.13093754,104880.0,104870.0,0.36338212]
[1748844830479,0.13093754,104880.0,104870.0,0.3566885]
[1748844830684,0.13093754,104880.0,104870.0,0.36338212]
[1748844831447,0.32163166,104880.0,104870.0,0.36338212]
[1748844832001,0.32163166,104880.0,104870.0,0.36338106]
[1748844832208,0.32163166,104880.0,104870.0,0.36338105]
[1748844832533,0.32163166,104880.0,104870.0,0.36338106]
[1748844832853,0.3120975,104880.0,104870.0,0.37291658]
[1748844833054,0.12140338,104880.0,104870.0,0.36622402]
[1748844833267,0.42493808,104880.0,104870.0,0.37575908]
[1748844833481,0.42493808,104880.0,104870.0,0.38245137]
[1748844833864,0.42493808,104880.0,104870.0,0.38245141]
[1748844834633,0.60609795,104880.0,104870.0,0.37291616]
[1748844834839,0.926203,104880.0,104870.0,0.37291616]
[1748844835043,0.926203,104880.0,104870.0,0.38245091]
[1748844835436,0.69152981,104880.0,104870.0,0.38245091]
[1748844835644,0.88222393,104880.0,104870.0,0.38245073]
[1748844836707,0.88222393,104880.0,104870.0,0.3824499]
[1748844836855,0.88222393,104880.0,104870.0,0.39198506]
[1748844838422,0.88222393,104880.0,104870.0,0.39198494]
[1748844838642,0.88222393,104880.0,104870.0,0.39198493]
[1748844839123,0.70106451,104880.0,104870.0,0.39198472]
[1748844839446,0.71059912,104880.0,104870.0,0.38244921]
[1748844839843,0.71059912,104880.0,104870.0,0.38244915]
[1748844840050,0.71059912,104880.0,104870.0,0.37575909]
[1748844840468,0.90129324,104880.0,104870.0,0.37575909]
[1748844841531,0.90129324,104880.0,104870.0,0.3729137]
[1748844841678,0.90129324,104880.0,104870.0,0.37291363]
[1748844841912,0.924203,104880.0,104870.0,0.36622384]
[1748844842160,0.924203,104880.0,104870.0,0.37291359]
[1748844842389,0.924203,104880.0,104870.0,0.37291356]
[1748844843073,0.924163,104880.0,104870.0,0.37291335]
[1748844843522,0.9145369,104880.0,104870.0,0.36622384]
[1748844843946,0.9145369,104880.0,104870.0,0.37291315]
[1748844844403,0.9145369,104880.0,104870.0,0.36622384]
[1748844844565,0.9145369,104880.0,104870.0,0.37291305]
[1748844845212,0.9145369,104880.0,104870.0,0.3729131]
[1748844845942,0.9145369,104880.0,104870.0,0.37291299]
[1748844846125,0.9145369,104880.0,104870.0,0.36622384]
[1748844846330,0.9145369,104880.0,104870.0,0.38244823]
[1748844846535,0.9145369,104880.0,104870.0,0.39198339]
[1748844846753,0.10025307,104890.0,104880.0,0.24096243]
[1748844846961,1.16277012,104900.0,104890.0,0.24094307]
[1748844847154,1.16277012,104900.0,104890.0,0.23140964]
[1748844847155,1.37249355,104900.0,104890.0,0.23140964]
[1748844847383,1.3534286,104900.0,104890.0,0.24094325]
[1748844847583,1.3438959,104900.0,104890.0,0.23140964]
[1748844847948,1.66390937,104900.0,104890.0,0.23140964]
[1748844848132,1.66590937,104900.0,104890.0,0.23140964]
[1748844848564,1.66590937,104900.0,104890.0,0.23140973]
[1748844848765,1.66590937,104900.0,104890.0,0.24094343]
[1748844849185,1.33628291,104900.0,104890.0,0.0312]
[1748844849584,1.33728291,104900.0,104890.0,0.0312]
[1748844850000,1.33728291,104900.0,104890.0,0.04073379]
[1748844850398,0.95264291,104900.0,104890.0,0.22187594]
[1748844850581,1.31972391,104900.0,104890.0,0.23140973]
[1748844851208,1.31972391,104900.0,104890.0,0.24094343]
[1748844852794,1.31972391,104900.0,104890.0,0.23140973]
[1748844853158,1.31972391,104900.0,104890.0,0.04073379]
[1748844854792,1.31019103,104900.0,104890.0,0.0312]
[1748844859485,0.89823103,104900.0,104890.0,0.04073379]
[1748844859957,0.57829776,104900.0,104890.0,0.04073379]
[1748844860171,0.89815103,104900.0,104890.0,0.24094343]
[1748844862395,0.89815103,104900.0,104890.0,0.23140973]
[1748844868568,0.66243488,104900.0,104890.0,0.23140973]
[1748844868975,0.66243488,104900.0,104890.0,0.23809594]
[1748844869326,1.17303107,104900.0,104890.0,0.23809643]
[1748844870577,1.17303107,104900.0,104890.0,0.23809739]
[1748844871534,1.17303107,104900.0,104890.0,0.23809738]
[1748844871728,1.17303107,104900.0,104890.0,0.03788765]
[1748844872190,1.17303107,104900.0,104890.0,0.03788899]
[1748844872797,1.17303107,104900.0,104890.0,0.03788921]
[1748844873513,1.17303107,104900.0,104890.0,0.03788873]
[1748844873730,1.17303107,104900.0,104890.0,0.03789039]
[1748844874806,1.17303107,104900.0,104890.0,0.0312]
[1748844875012,1.17303107,104900.0,104890.0,0.03789039]
[1748844875648,1.17303107,104900.0,104890.0,0.03789591]
[1748844876215,1.17303107,104900.0,104890.0,0.0312]
[1748844876425,1.17303107,104900.0,104890.0,0.04094644]
[1748844876640,1.22446234,104900.0,104890.0,0.24115608]
[1748844877250,1.22446234,104900.0,104890.0,0.22492647]
[1748844877453,1.22446234,104900.0,104890.0,0.24115618]
[1748844877788,1.22446234,104900.0,104890.0,0.23446026]
[1748844877992,1.22446234,104900.0,104890.0,0.24115619]
[1748844878401,1.22446234,104900.0,104890.0,0.2411562]
[1748844879109,1.22446234,104900.0,104890.0,0.24115619]
[1748844879336,1.22446234,104900.0,104890.0,0.23162238]
[1748844879642,1.22446234,104900.0,104890.0,0.03425053]
[1748844879916,1.22446234,104900.0,104890.0,0.04094644]
[1748844880116,1.22446234,104900.0,104890.0,0.04094642]
[1748844881553,1.22446234,104900.0,104890.0,0.04094623]
[1748844882700,1.22446234,104900.0,104890.0,0.04094722]
[1748844882903,1.22446234,104900.0,104890.0,0.04094731]
[1748844883220,1.22446234,104900.0,104890.0,0.04094734]
[1748844884281,1.22446234,104900.0,104890.0,0.04094755]
[1748844885436,1.22446234,104900.0,104890.0,0.0409479]
[1748844885979,1.22446234,104900.0,104890.0,0.04094794]
[1748844886578,1.22446234,104900.0,104890.0,0.024848]
[1748844886795,1.22446234,104900.0,104890.0,0.009748]
[1748844887162,1.25506234,104900.0,104890.0,0.009748]
[1748844887399,1.25506234,104900.0,104890.0,0.00974797]
[1748844888002,0.87066234,104900.0,104890.0,0.00305052]
[1748844888194,0.20020955,104890.0,104880.0,0.00305052]
[1748844888337,0.5201454,104890.0,104880.0,0.00305052]
[1748844888536,0.5201454,104890.0,104880.0,0.0097491]
[1748844889317,0.5201454,104890.0,104880.0,0.00305052]
[1748844889487,0.5201454,104890.0,104880.0,0.00974929]
[1748844889688,0.5201454,104890.0,104880.0,0.00974928]
[1748844889900,0.5201454,104890.0,104880.0,0.00974672]
[1748844890279,0.5201454,104890.0,104880.0,0.00974693]
[1748844890492,0.5201454,104890.0,104880.0,0.01074693]
[1748844890851,0.5201454,104890.0,104880.0,0.00405052]
[1748844891054,0.5201454,104890.0,104880.0,0.01074686]
[1748844891505,0.5201454,104890.0,104880.0,0.00405076]
[1748844891948,0.5201454,104890.0,104880.0,0.01074713]
[1748844892924,0.5201454,104890.0,104880.0,0.01074598]
[1748844893813,0.5201454,104890.0,104880.0,0.01074525]
[1748844894195,0.8138254,104890.0,104880.0,0.01074516]
[1748844894609,0.8138254,104890.0,104880.0,0.01074479]
[1748844894814,0.8138254,104890.0,104880.0,0.01074467]
[1748844895176,0.8138254,104890.0,104880.0,0.03615076]
[1748844895382,0.49388955,104890.0,104880.0,0.03615076]
[1748844895613,0.8138254,104890.0,104880.0,0.0428445]
[1748844895808,0.8138254,104890.0,104880.0,0.04932844]
[1748844896002,0.8138254,104890.0,104880.0,0.0428444]
[1748844896545,0.8138254,104890.0,104880.0,0.03615066]
[1748844896753,0.8138254,104890.0,104880.0,0.04284415]
[1748844896948,0.8138254,104890.0,104880.0,0.03615066]
[1748844897172,0.8138254,104890.0,104880.0,0.05237885]
[1748844897298,0.8138254,104890.0,104880.0,0.24307297]
[1748844898218,0.8138254,104890.0,104880.0,0.24307292]
[1748844898561,0.5201454,104890.0,104880.0,0.24307292]
[1748844898716,0.9044254,104890.0,104880.0,0.24307292]
[1748844898966,0.9044254,104890.0,104880.0,0.26214196]
[1748844899358,0.9044254,104890.0,104880.0,0.25260739]
[1748844900237,0.9044254,104890.0,104880.0,0.25260741]
[1748844900558,0.9044254,104890.0,104880.0,0.25260733]
[1748844900766,0.9044254,104890.0,104880.0,0.26214185]
[1748844900968,0.9044254,104890.0,104880.0,0.25260733]
[1748844901190,0.9044254,104890.0,104880.0,0.26214185]
[1748844901761,0.9044254,104890.0,104880.0,0.26214183]
[1748844901918,0.9044254,104890.0,104880.0,0.25260731]
[1748844902338,0.5201454,104890.0,104880.0,0.24591411]
[1748844902553,0.9044254,104890.0,104880.0,0.26214169]
[1748844902715,0.9044254,104890.0,104880.0,0.26883483]
[1748844903596,0.9044254,104890.0,104880.0,0.26883487]
[1748844904158,0.9044254,104890.0,104880.0,0.26883484]
[1748844904540,0.9044254,104890.0,104880.0,0.26214169]
[1748844904755,0.9044254,104890.0,104880.0,0.26883484]
[1748844905536,0.9044254,104890.0,104880.0,0.26214169]
[1748844905748,0.9044254,104890.0,104880.0,0.26883494]
[1748844906368,0.9044254,104890.0,104880.0,0.26214169]
[1748844906560,0.9044254,104890.0,104880.0,0.26883494]
[1748844907574,0.9044254,104890.0,104880.0,0.26883582]
[1748844907773,0.9044254,104890.0,104880.0,0.26578523]
[1748844907975,0.9044254,104890.0,104880.0,0.27837034]
[1748844908216,0.9044254,104890.0,104880.0,0.26883603]
[1748844908428,0.9044254,104890.0,104880.0,0.27837046]
[1748844908786,0.9044254,104890.0,104880.0,0.2879048]
[1748844908988,0.9044254,104890.0,104880.0,0.27837046]
[1748844909349,0.9044254,104890.0,104880.0,0.27167621]
[1748844909551,0.9044254,104890.0,104880.0,0.27837045]
[1748844910138,0.9044254,104890.0,104880.0,0.27837159]
[1748844910576,0.9044254,104890.0,104880.0,0.26883716]
[1748844910903,0.9044254,104890.0,104880.0,0.27837159]
[1748844911219,0.9044254,104890.0,104880.0,0.27167621]
[1748844911563,0.9044254,104890.0,104880.0,0.27837171]
[1748844911900,0.9044254,104890.0,104880.0,0.27167621]
[1748844912105,0.9044254,104890.0,104880.0,0.27837189]
[1748844912240,0.9044254,104890.0,104880.0,0.27532121]
[1748844912444,0.9044254,104890.0,104880.0,0.27837189]
[1748844912692,0.9044254,104890.0,104880.0,0.27837225]
[1748844913220,0.91395874,104890.0,104880.0,0.27837225]
[1748844913417,0.91395874,104890.0,104880.0,0.27167621]
[1748844913580,0.91395874,104890.0,104880.0,0.27837258]
[1748844913954,0.91395874,104890.0,104880.0,0.28790692]
[1748844914274,0.91395874,104890.0,104880.0,0.27837258]
[1748844914594,0.91395874,104890.0,104880.0,0.28790692]
[1748844914801,0.91395874,104890.0,104880.0,0.28790743]
[1748844914997,0.91395874,104890.0,104880.0,0.28790742]
[1748844915244,0.91395874,104890.0,104880.0,0.28790758]
[1748844915551,0.91395874,104890.0,104880.0,0.28121055]
[1748844915899,0.91395874,104890.0,104880.0,0.27167621]
[1748844916342,0.91395874,104890.0,104880.0,0.27837407]
[1748844916780,0.91395874,104890.0,104880.0,0.27837404]
[1748844916943,0.91395874,104890.0,104880.0,0.27837405]
[1748844917151,0.91395874,104890.0,104880.0,0.27837404]
[1748844917354,0.91395874,104890.0,104880.0,0.27167621]
[1748844917583,0.91395874,104890.0,104880.0,0.27837498]
[1748844918548,0.91395874,104890.0,104880.0,0.27167621]
[1748844918754,0.91395874,104890.0,104880.0,0.27837495]
[1748844919109,0.91395874,104890.0,104880.0,0.27837496]
[1748844919635,0.91395874,104890.0,104880.0,0.27837494]
[1748844920147,0.91395874,104890.0,104880.0,0.27837506]
[1748844920344,0.91395874,104890.0,104880.0,0.2879094]
[1748844920650,0.91395874,104890.0,104880.0,0.28121055]
[1748844921056,0.91395874,104890.0,104880.0,0.28790939]
[1748844921256,0.91395874,104890.0,104880.0,0.28121052]
[1748844921395,0.91395874,104890.0,104880.0,0.28790934]
[1748844921608,0.91395874,104890.0,104880.0,0.278375]
[1748844922300,0.91395874,104890.0,104880.0,0.27837534]
[1748844922511,0.91395874,104890.0,104880.0,0.27837532]
[1748844922723,0.91395874,104890.0,104880.0,0.27167618]
[1748844923525,0.91395874,104890.0,104880.0,0.27837484]
[1748844923757,0.7232828,104890.0,104880.0,0.28790927]
[1748844924170,0.7232828,104890.0,104880.0,0.28790936]
[1748844924382,0.7232828,104890.0,104880.0,0.28790931]
[1748844924833,1.28083544,104890.0,104880.0,0.01744297]
[1748844925071,6.20508522,104890.0,104880.0,0.01439255]
[1748844925334,6.20508522,104890.0,104870.0,0.0176]
[1748844925335,0.58716949,104880.0,104870.0,0.0176]
[1748844925586,0.2098029,104860.0,104850.0,0.00305148]
[1748844925792,0.20982327,104850.0,104840.0,0.03355169]
[1748844925996,0.20982327,104850.0,104840.0,0.04249135]
[1748844925997,0.84969497,104850.0,104840.0,0.04249135]
[1748844926204,1.23373497,104850.0,104840.0,0.00893966]
[1748844926441,0.19076688,104840.0,104830.0,0.24431405]
[1748844926668,0.84017683,104840.0,104830.0,0.34970751]
[1748844926869,0.84017683,104840.0,104830.0,0.3586279]
[1748844926870,0.20984292,104840.0,104830.0,0.3586279]
[1748844927085,0.61778,104840.0,104830.0,0.13035484]
[1748844927297,0.61778,104840.0,104830.0,0.00310054]
[1748844927298,0.58438513,104840.0,104830.0,0.00310054]
[1748844927502,0.58438513,104840.0,104830.0,0.00896886]